bitfinex-derivatives/quotes_SOLF0:USTF0_20250319
["timestamp","ask_amount","ask_price","bid_price","bid_amount"]
[1742408126699,0.05879807,130.77,130.76,7.6474]
[1742408127297,40.2412094,130.86,130.75,0.04901728]
[1742408127594,40.2412094,130.84,130.73,47.94]
[1742408127799,38.25,130.79,130.73,47.94]
[1742408128296,40.2412094,130.84,130.79,7.6453]
[1742408128498,260.06,130.87,130.79,47.9]
[1742408128801,26.3378,130.84,130.82,7.6435]
[1742408128998,26.3378,130.84,130.8,0.04922275]
[1742408129195,52.5423094,130.89,130.79,47.9]
[1742408129501,26.3378,130.83,130.82,0.05369233]
[1742408129901,52.5423094,130.89,130.82,0.05369233]
[1742408130202,52.5423094,130.89,130.83,47.9]
[1742408130203,26.3378,130.86,130.83,47.9]
[1742408130605,26.3378,130.85,130.83,47.9]
[1742408130903,26.3378,130.84,130.83,47.95197553]
[1742408131092,26.3378,130.85,130.83,47.95197553]
[1742408131303,56.9378,130.85,130.83,47.95197553]
[1742408131494,12.3011,130.89,130.83,47.95197553]
[1742408131695,26.3378,130.86,130.85,7.6418]
[1742408132100,56.9378,130.86,130.85,7.6418]
[1742408132300,12.3011,130.89,130.84,0.05730076]
[1742408132497,26.3378,130.88,130.84,0.05730076]
[1742408132704,26.3378,130.87,130.84,0.05730076]
[1742408133001,26.3378,130.86,130.84,7.69990076]
[1742408133203,26.3378,130.86,130.84,0.05730076]
[1742408133404,56.9378,130.86,130.84,0.05730076]
[1742408133604,56.9378,130.86,130.84,7.69990076]
[1742408133803,56.9378,130.86,130.84,0.05730076]
[1742408134003,56.9378,130.86,130.84,7.69960076]
[1742408134402,7.6407,130.88,130.84,0.05730076]
[1742408134601,7.6407,130.88,130.84,47.91730076]
[1742408134602,26.3378,130.87,130.84,47.91730076]
[1742408134801,47.84,130.96,130.84,47.91730076]
[1742408135007,14.7668,130.88,130.84,47.91730076]
[1742408135303,14.7668,130.88,130.85,0.05834211]
[1742408135493,8.4763,130.91,130.85,0.05834211]
[1742408135695,8.4763,130.91,130.9,7.6392]
[1742408136098,53.8431,130.91,130.88,47.84]
[1742408136299,14.7668,130.9,130.89,0.05129811]
[1742408136495,39.0763,130.91,130.84,229.32]
[1742408136698,39.0763,130.91,130.85,47.84]
[1742408137106,14.7668,130.89,130.85,47.84]
[1742408137403,14.7668,130.9,130.85,47.84]
[1742408137702,0.05492754,130.89,130.86,0.05175601]
[1742408137999,14.7668,130.87,130.81,89.34351292]
[1742408138206,14.7668,130.85,130.81,89.34351292]
[1742408138405,14.7668,130.84,130.81,89.34351292]
[1742408138704,14.7668,130.84,130.81,96.96761292]
[1742408138898,30.6,130.84,130.81,96.96761292]
[1742408139102,30.65454522,130.84,130.82,7.6439]
[1742408139297,38.29734522,130.84,130.81,41.55998574]
[1742408139502,14.7668,130.82,130.81,22.15748574]
[1742408139709,45.3668,130.82,130.81,2.75348574]
[1742408140001,0.05454522,130.84,130.81,2.75348574]
[1742408140201,14.7668,130.82,130.81,2.75348574]
[1742408140394,22.4107,130.82,130.81,2.75348574]
[1742408140694,45.3668,130.82,130.8,83.00702585]
[1742408140897,14.7668,130.81,130.8,83.00702585]
[1742408141096,45.3668,130.81,130.76,130.80702585]
[1742408141300,14.7668,130.8,130.76,130.80702585]
[1742408141701,45.3668,130.8,130.76,130.80702585]
[1742408141906,0.05894816,130.79,130.77,0.05528538]
[1742408142106,14.82574816,130.79,130.77,0.05528538]
[1742408142405,45.42574816,130.79,130.77,47.85528538]
[1742408143595,14.7668,130.78,130.77,0.05528538]
[1742408143900,14.7668,130.78,130.76,83.00702585]
[1742408144104,45.3668,130.78,130.76,83.00702585]
[1742408144303,45.3668,130.78,130.72,47.8]
[1742408144505,45.3668,130.78,130.77,7.6468]
[1742408144907,14.7668,130.77,130.76,0.05410039]
[1742408145104,30.6,130.78,130.76,0.05410039]
[1742408145406,3.207e-05,130.78,130.77,55.4268]
[1742408146201,8.082,130.91,130.77,63.5435]
[1742408146406,14.7668,130.88,130.83,40.2412094]
[1742408146603,14.7668,130.88,130.84,47.78]
[1742408146811,14.7668,130.87,130.84,47.78]
[1742408147206,30.6,130.87,130.84,47.78]
[1742408147412,30.65241612,130.87,130.84,47.82992577]
[1742408147607,14.7668,130.86,130.84,47.82992577]
[1742408147804,14.7668,130.86,130.85,7.6418]
[1742408148009,45.3668,130.86,130.84,47.82992577]
[1742408148211,45.3668,130.86,130.84,55.47232577]
[1742408148212,14.7668,130.85,130.84,55.47232577]
[1742408148512,0.05241612,130.87,130.84,47.82992577]
[1742408148719,30.65241612,130.87,130.86,7.6416]
[1742408148911,0.05241612,130.87,130.86,7.6416]
[1742408149106,1.612e-05,130.87,130.86,7.6416]
[1742408151313,1.612e-05,130.87,130.86,277.1428094]
[1742408151716,1436.9749,131.16,130.86,277.1412094]
[1742408151717,269.5012094,131.01,130.86,277.1412094]
[1742408151909,30.6,131.0,130.92,40.2412094]
[1742408152218,30.6,131.0,130.93,51.9285]
[1742408152403,30.6,131.0,130.86,229.26]
[1742408152404,2.0685,130.94,130.86,229.26]
[1742408152603,40.2412094,130.98,130.87,47.74]
[1742408152604,2.0685,130.93,130.87,47.74]
[1742408152809,2.0685,130.93,130.91,7.6383]
[1742408153011,0.04999482,130.91,130.89,0.05176869]
[1742408153212,0.04999482,130.91,130.9,7.6388]
[1742408153414,9.482e-05,130.91,130.9,7.6388]
[1742408154212,9.482e-05,130.91,130.89,0.05176869]
[1742408154213,32.66859482,130.91,130.89,0.05176869]
[1742408154416,2.0685,130.9,130.89,0.05176869]
[1742408154812,32.6685,130.9,130.89,0.05176869]
[1742408155016,9.482e-05,130.91,130.89,0.05176869]
[1742408155215,30.60009482,130.91,130.9,7.6392]
[1742408155414,30.60009482,130.91,130.89,0.05176869]
[1742408155415,2.0685,130.9,130.89,0.05176869]
[1742408155921,40.2412094,131.05,130.89,304.67237339]
[1742408156112,2.0685,130.98,130.92,20.1206047]
[1742408156314,2.0685,130.98,130.93,47.7]
[1742408156517,2.0685,130.97,130.93,47.7]
[1742408156718,2.0685,130.96,130.94,47.7]
[1742408156913,2.12187734,130.96,130.94,47.75220463]
[1742408157223,30.65337734,130.96,130.94,47.75220463]
[1742408157624,32.72187734,130.96,130.94,47.75220463]
[1742408158622,32.72187734,130.96,130.95,7.6363]
[1742408158816,0.05337734,130.96,130.95,7.6363]
[1742408159016,7.734e-05,130.96,130.95,7.6363]
[1742408160024,7.734e-05,130.96,130.95,47.8775094]
[1742408160719,7.734e-05,130.96,130.94,47.75220463]
[1742408160720,2.06857734,130.96,130.94,0.05220463]
[1742408160919,30.60007734,130.96,130.94,0.05220463]
[1742408161123,32.66857734,130.96,130.94,0.05220463]
[1742408161422,2.0685,130.95,130.94,7.68880463]
[1742408161626,32.66857734,130.96,130.94,0.05220463]
[1742408161821,2.0685,130.95,130.94,0.05220463]
[1742408162120,2.0685,130.95,130.9,47.66]
[1742408162320,32.6685,130.95,130.9,47.66]
[1742408162720,32.6685,130.95,130.94,7.6369]
[1742408162912,2.0685,130.94,130.9,47.66]
[1742408163116,2.0685,130.93,130.9,47.66]
[1742408163316,30.6,130.95,130.91,0.05762452]
[1742408163513,0.05631802,130.93,130.91,0.05762452]
[1742408163728,4.2585,130.99,130.96,7.6353]
[1742408163729,34.8585,130.99,130.96,7.6353]
[1742408163913,2.0685,130.97,130.96,7.6353]
[1742408164114,2.0685,130.97,130.94,47.66]
[1742408164322,2.0685,130.95,130.94,47.66]
[1742408164518,2.0685,130.95,130.91,47.64]
[1742408164716,2.0685,130.94,130.91,47.64]
[1742408164916,30.6,130.95,130.92,0.05071381]
[1742408165119,2.0685,130.94,130.92,0.05071381]
[1742408165424,2.0685,130.94,130.92,7.68841381]
[1742408165625,32.6685,130.94,130.92,0.05071381]
[1742408166027,30.6,130.94,130.93,7.6375]
[1742408166621,3.8864,130.97,130.95,7.636]
[1742408166929,2.0685,130.96,130.9,47.64]
[1742408167127,2.0685,130.96,130.95,0.05747132]
[1742408167328,30.6,130.96,130.9,47.64]
[1742408167624,4.0037,131.01,130.94,0.04914929]
[1742408167831,32.6685,131.01,130.95,87.8612094]
[1742408168224,32.6685,131.01,131.0,7.6334]
[1742408168832,32.6685,131.01,130.99,7.6337]
[1742408169133,2.0685,131.0,130.97,0.05404944]
[1742408169330,2.0685,131.0,130.99,7.634]
[1742408169528,32.6685,131.0,130.97,0.05404944]
[1742408169728,2.0685,130.98,130.97,0.05404944]
[1742408170226,32.6685,130.98,130.97,7.68874944]
[1742408170824,8.0183,131.02,130.97,0.05404944]
[1742408171028,2.0685,130.99,130.97,0.05404944]
[1742408171231,2.0685,130.98,130.97,0.05404944]
[1742408171431,2.0685,130.98,130.93,47.6]
[1742408171636,2.0685,130.94,130.9,47.6]
[1742408172036,2.0685,130.94,130.89,276.76]
[1742408172037,2.0685,130.93,130.89,276.76]
[1742408172334,2.0685,130.93,130.92,7.638]
[1742408172541,2.0685,130.9,130.83,31.43691964]
[1742408172836,2.0685,130.84,130.83,31.43691964]
[1742408173233,2.0685,130.83,130.82,52.40702585]
[1742408173543,2.0685,130.83,130.82,52.45712818]
[1742408173845,0.05381169,130.84,130.82,52.45712818]
[1742408174030,4.1042,130.93,130.82,130.80408836]
[1742408174232,2.0685,130.89,130.83,3.9473]
[1742408174542,2.0685,130.87,130.83,3.9473]
[1742408174842,2.0685,130.85,130.82,53.6]
[1742408175144,2.0685,130.84,130.8,57.5815]
[1742408175333,2.0685,130.83,130.82,0.05403828]
[1742408175537,2.0685,130.85,130.79,40.19572016]
[1742408175738,2.0685,130.86,130.81,53.51135384]
[1742408176043,2.0685,130.85,130.81,53.46]
[1742408176240,2.0685,130.87,130.82,0.04857411]
[1742408176435,2.0685,130.88,130.82,0.04857411]
[1742408176640,2.0685,130.9,130.84,40.19572016]
[1742408176940,2.0685,130.88,130.87,7.6406]
[1742408177146,2.0685,130.91,130.86,0.05370655]
[1742408177438,2.0685,130.92,130.91,7.6386]
[1742408177642,2.0685,130.94,130.89,53.32]
[1742408177843,2.0685,130.95,130.9,40.19572016]
[1742408178045,233.3414,131.03,130.9,40.19572016]
[1742408178046,40.19572016,131.05,130.93,40.19572016]
[1742408178239,2.0685,130.99,130.94,57.3083]
[1742408178447,2.0685,130.98,130.94,57.3083]
[1742408178635,2.0685,130.98,130.95,0.05070976]
[1742408178838,53.18,131.03,130.95,0.05070976]
[1742408179035,2.0685,130.98,130.97,7.6351]
[1742408179239,53.18,131.03,130.98,0.05509362]
[1742408179439,40.19572016,131.02,130.98,0.05509362]
[1742408179646,2.0685,130.99,130.97,7.6351]
[1742408179945,2.0685,130.98,130.97,0.05159094]
[1742408180146,53.18,131.03,130.97,0.05159094]
[1742408180334,2.0685,131.0,130.97,0.05159094]
[1742408180740,2.0685,130.98,130.97,7.68669094]
[1742408181346,2.0685,130.98,130.97,0.05159094]
[1742408182347,2.0685,130.98,130.97,7.68669094]
[1742408182643,2.0685,130.98,130.97,0.05159094]
[1742408184045,2.0685,130.98,130.97,7.68669094]
[1742408184244,52.26,131.02,130.97,0.05159094]
[1742408184448,2.0685,130.98,130.97,7.68669094]
[1742408184837,7.6326,131.02,130.97,0.05159094]
[1742408185043,2.0685,130.98,130.97,7.68669094]
[1742408185343,64.5254,131.06,130.97,0.05159094]
[1742408185537,7.6308,131.05,130.95,52.08]
[1742408185747,3.9451,131.06,131.0,0.05304954]
[1742408185947,56.134,131.1,131.0,40.2487697]
[1742408186149,7.6282,131.09,131.0,40.19572016]
[1742408186345,7.6282,131.09,131.04,0.05066986]
[1742408186545,4.194,131.1,131.04,0.05066986]
[1742408186750,7.6303,131.06,131.04,0.05066986]
[1742408186951,4.194,131.1,131.04,0.05066986]
[1742408187151,7.6298,131.07,131.04,0.05066986]
[1742408187453,51.68,131.09,131.04,0.05066986]
[1742408187847,7.6305,131.05,131.04,0.05066986]
[1742408188151,51.46,131.05,130.98,3.8941]
[1742408188354,59.091,131.05,130.98,3.8941]
[1742408188553,51.46,131.05,130.98,3.8941]
[1742408189047,51.42,131.05,130.93,51.42]
[1742408189347,0.05132073,131.03,131.0,0.05106928]
[1742408190441,0.05132073,131.03,131.0,0.05106928]
[1742408190846,0.05132073,131.03,131.02,7.6322]
[1742408191242,51.02,131.09,131.0,0.05106928]
[1742408191444,51.02,131.09,130.99,40.19572016]
[1742408191651,7.6297,131.07,130.99,40.19572016]
[1742408191851,55.174,131.1,131.03,7.6313]
[1742408192152,7.6299,131.06,131.03,7.6313]
[1742408192350,55.174,131.1,130.99,40.19572016]
[1742408192650,4.194,131.1,131.03,0.05165644]
[1742408192853,4.194,131.1,131.03,50.87165644]
[1742408193049,4.194,131.1,131.05,40.19572016]
[1742408193251,228.98,131.18,131.05,40.19572016]
[1742408193454,236.8872,131.18,131.06,0.05109465]
[1742408193656,236.8872,131.18,131.07,50.72]
[1742408193852,236.8872,131.18,131.11,0.05052451]
[1742408194454,7.624,131.17,131.13,7.6255]
[1742408194650,236.8872,131.18,131.08,44.20162016]
[1742408194852,7.9072,131.18,131.14,0.05614911]
[1742408195449,10.44855109,131.2,131.14,0.05614911]
[1742408195755,10.44855109,131.2,131.14,40.25186927]
[1742408195956,10.44855109,131.2,131.17,40.19572016]
[1742408196254,10.44855109,131.2,131.18,7.6224]
[1742408196450,3.9845,131.23,131.17,40.24865543]
[1742408196646,3.9845,131.23,131.2,7.6214]
[1742408196845,3.9845,131.23,131.17,40.19572016]
[1742408197051,3.9845,131.23,131.2,0.05143475]
[1742408197252,3.9845,131.23,131.13,40.19572016]
[1742408197452,7.6234,131.18,131.13,40.19572016]
[1742408197652,50.3,131.21,131.13,40.19572016]
[1742408197855,50.3,131.21,131.14,7.6249]
[1742408198054,7.6232,131.18,131.14,7.6249]
[1742408198351,7.6232,131.18,131.13,47.82132016]
[1742408198657,0.05143475,131.17,131.15,0.05405829]
[1742408201058,49.87143475,131.17,131.08,94.08162016]
[1742408201357,4.0117,131.16,131.08,94.08162016]
[1742408201860,4.0117,131.16,131.12,7.6263]
[1742408202055,4.0117,131.16,131.08,94.08162016]
[1742408202252,40.19572016,131.3,131.2,7.6216]
[1742408202449,40.19572016,131.28,131.18,40.19572016]
[1742408202654,4.0117,131.27,131.17,49.92]
[1742408202854,40.19572016,131.25,131.14,49.92]
[1742408203156,49.92,131.24,131.14,49.92]
[1742408203352,49.92,131.24,131.15,40.19572016]
[1742408203553,0.05240705,131.2,131.18,0.05162592]
[1742408204259,0.05240705,131.2,131.18,49.75162592]
[1742408204459,0.05240705,131.2,131.19,7.6223]
[1742408204656,0.05240705,131.2,131.18,49.75162592]
[1742408205059,0.05240705,131.2,131.18,0.05162592]
[1742408205462,0.05240705,131.2,131.11,88.33572016]
[1742408205665,3.888,131.21,131.11,88.33572016]
[1742408205860,4.1836,131.2,131.11,88.33572016]
[1742408206864,0.05445849,131.17,131.14,0.05014301]
[1742408207064,47.97445849,131.17,131.14,0.05014301]
[1742408207763,0.05445849,131.17,131.14,0.05014301]
[1742408208361,228.77445849,131.17,131.09,47.96]
[1742408208566,228.72,131.17,131.06,4.2412]
[1742408208760,228.72,131.17,131.09,7.6278]
[1742408208954,228.72,131.17,131.06,4.2412]
[1742408209366,228.72,131.17,131.08,40.19572016]
[1742408209665,0.05252974,131.13,131.1,0.05398235]
[1742408209958,0.05252974,131.13,131.12,7.6264]
[1742408210367,2.974e-05,131.13,131.12,7.6264]
[1742408211065,4.1836,131.2,131.12,7.62]
[1742408211259,3.888,131.21,131.16,40.19572016]
[1742408211460,7.6191,131.25,131.16,40.19572016]
[1742408211461,4.2228,131.24,131.17,47.6]
[1742408211864,4.2228,131.24,131.23,7.62]
[1742408212060,280.6286,131.27,131.19,40.24432031]
[1742408212265,0.05761799,131.25,131.19,40.19572016]
[1742408212467,0.05761799,131.25,131.24,7.6194]
[1742408212763,7.6196,131.24,131.22,0.04922686]
[1742408213065,4.0275,131.24,131.14,87.79572016]
[1742408213264,4.0275,131.24,131.15,47.6]
[1742408213666,4.0275,131.24,131.17,40.19572016]
[1742408214258,0.04906895,131.22,131.19,0.05754077]
[1742408215266,87.84478911,131.22,131.12,47.6]
[1742408215464,228.7,131.21,131.12,47.6]
[1742408215770,228.68,131.27,131.12,47.6]
[1742408216075,40.19572016,131.26,131.15,40.19572016]
[1742408216367,7.6215,131.21,131.15,40.19572016]
[1742408216565,7.6215,131.21,131.19,0.0483925]
[1742408217066,7.67417202,131.21,131.19,0.0483925]
[1742408217271,7.6217,131.2,131.19,0.0483925]
[1742408217471,236.35267202,131.21,131.1,40.19572016]
[1742408217664,7.6232,131.18,131.1,40.19572016]
[1742408217860,47.58,131.2,131.1,40.19572016]
[1742408218267,7.6235,131.17,131.11,7.6267]
[1742408218571,0.04811684,131.15,131.13,0.04847788]
[1742408219370,0.04811684,131.15,131.13,7.67427788]
[1742408219765,0.04811684,131.15,131.13,0.04847788]
[1742408219968,0.04811684,131.15,131.14,7.6252]
[1742408220166,0.04811684,131.15,131.13,0.04847788]
[1742408220768,0.04811684,131.15,131.08,47.6]
[1742408220970,7.6262,131.13,131.08,55.2286]
[1742408221172,3.9574,131.19,131.08,47.6]
[1742408221376,3.9574,131.19,131.09,40.19572016]
[1742408221866,0.05317993,131.15,131.13,0.05655175]
[1742408222266,0.05317993,131.15,131.08,47.6]
[1742408222477,0.05317993,131.15,131.06,40.19572016]
[1742408222478,228.77317993,131.15,131.06,40.19572016]
[1742408222775,232.9588,131.15,131.07,7.6293]
[1742408223173,7.6276,131.1,131.06,95.42532016]
[1742408223369,232.9588,131.15,131.05,3.9065]
[1742408223577,0.05026745,131.09,131.07,0.05865103]
[1742408223768,0.05026745,131.09,131.08,7.6287]
[1742408223968,47.6,131.12,131.03,40.19572016]
[1742408224277,7.6308,131.05,130.98,51.6132]
[1742408224479,276.32,131.08,130.98,51.6132]
[1742408224676,228.72,131.08,131.01,40.19572016]
[1742408224877,228.72,131.08,131.02,47.6]
[1742408225072,276.34,131.14,131.04,40.19572016]
[1742408225278,276.34,131.14,131.1,7.6272]
[1742408225279,7.6261,131.13,131.1,7.6272]
[1742408225777,0.05304776,131.13,131.1,0.05162638]
[1742408225975,47.6,131.12,131.1,0.05162638]
[1742408226172,47.6,131.12,131.02,47.6]
[1742408226775,40.19572016,131.1,131.03,7.6313]
[1742408227077,47.6,131.12,131.02,47.6]
[1742408227279,7.6276,131.1,131.06,7.6295]
[1742408227490,0.05545554,131.08,131.05,0.05753427]
[1742408227681,0.05545554,131.08,131.03,40.19572016]
[1742408227973,0.05545554,131.08,131.05,0.04995807]
[1742408230280,0.05545554,131.08,131.05,7.67995807]
[1742408230471,0.05545554,131.08,131.05,0.04995807]
[1742408230674,276.43545554,131.08,131.05,0.04995807]
[1742408230871,7.632,131.03,130.99,47.6]
[1742408231074,44.17762016,131.07,130.99,47.6]
[1742408231476,4.2393,131.06,130.97,47.6]
[1742408231978,0.05432865,131.03,131.0,7.6893231]
[1742408232483,0.05432865,131.03,131.01,7.6324]
[1742408232683,0.05432865,131.03,131.0,0.0564231]
[1742408232882,0.05432865,131.03,131.01,47.6]
[1742408233085,0.05432865,131.03,131.02,7.6322]
[1742408233288,87.79572016,131.11,131.02,7.6322]
[1742408233289,273.23502016,131.13,131.02,40.19572016]
[1742408233588,7.6279,131.1,131.06,7.6295]
[1742408233782,273.23502016,131.13,131.05,47.6]
[1742408234179,273.23502016,131.13,131.04,7.6308]
[1742408234386,273.23502016,131.13,131.03,3.8941]
[1742408234587,0.0582386,131.1,131.07,0.04811385]
[1742408234776,7.6287,131.08,131.07,0.04811385]
[1742408235381,7.62,131.08,131.01,47.6]
[1742408235585,4.191,131.09,131.01,47.6]
[1742408235793,7.628,131.1,131.02,40.19572016]
[1742408235987,4.191,131.12,131.02,40.19572016]
[1742408236285,44.38672016,131.12,131.02,40.19572016]
[1742408236587,0.05305614,131.08,131.06,0.05773664]
[1742408236990,7.68225614,131.08,131.06,0.05773664]
[1742408237385,0.05305614,131.08,131.06,0.05773664]
[1742408237981,7.6293,131.07,131.06,0.05773664]
[1742408238290,0.05305614,131.08,131.06,0.05773664]
[1742408238701,0.05305614,131.08,131.07,7.6293]
[1742408241600,5.614e-05,131.08,131.07,7.6293]
[1742408248400,28.92620618,131.18,131.14,7.625]
[1742408248799,28.92620618,131.18,131.11,47.56]
[1742408248999,24.63660618,131.16,131.08,47.56]
[1742408249304,7.6264,131.12,131.03,76.37820618]
[1742408249604,228.78,131.13,131.08,7.6283]
[1742408249801,7.6271,131.11,131.08,7.6283]
[1742408250008,7.6271,131.11,131.07,7.629]
[1742408250204,3.9626,131.12,131.03,51.7416]
[1742408250403,3.9626,131.12,131.09,7.6281]
[1742408250598,0.05015208,131.09,131.06,0.05689776]
[1742408250905,0.05094555,131.09,131.06,0.05434948]
[1742408251106,0.05094555,131.09,131.08,7.6283]
[1742408251407,4.555e-05,131.09,131.08,7.6283]
[1742408251601,4.555e-05,131.09,131.08,55.1883]
[1742408253097,1.52485513,131.16,131.08,47.56]
[1742408253295,1.52485513,131.16,131.09,24.63660618]
[1742408253498,1.52485513,131.16,131.09,32.66680618]
[1742408254103,1.52485513,131.16,131.15,7.6247]
[1742408255405,3.615e-05,131.17,131.16,7.6241]
[1742408255599,3.615e-05,131.17,131.16,55.1641]
[1742408256303,3.615e-05,131.17,131.16,63.4246]
[1742408256704,8.1895,131.26,131.16,55.8005]
[1742408257310,3.983,131.27,131.17,44.08913482]
[1742408257499,41.82241841,131.28,131.17,44.08913482]
[1742408257810,0.05164306,131.24,131.21,0.04878067]
[1742408258010,39.94353482,131.22,131.16,47.52]
[1742408258212,39.94353482,131.2,131.13,47.52]
[1742408258612,47.52,131.22,131.13,47.52]
[1742408258811,87.46353482,131.22,131.13,47.52]
[1742408259008,39.94353482,131.2,131.13,47.52]
[1742408259213,0.04848194,131.19,131.16,0.0520169]
[1742408259517,127.40706964,131.18,131.08,47.52]
[1742408259712,39.94353482,131.14,131.07,45.41122396]
[1742408259902,7.6267,131.12,131.07,41.38422396]
[1742408260308,39.94353482,131.14,131.07,41.38422396]
[1742408260607,0.05756742,131.12,131.09,0.0509329]
[1742408261000,7.6276,131.1,131.09,0.0509329]
[1742408261205,0.05756742,131.12,131.09,0.0509329]
[1742408261608,40.00110224,131.12,131.09,0.0509329]
[1742408262007,7.6276,131.1,131.09,0.0509329]
[1742408262209,0.05756742,131.12,131.09,0.0509329]
[1742408263809,0.05756742,131.12,131.09,7.6787329]
[1742408264411,0.05756742,131.12,131.09,0.0509329]
[1742408265417,0.05756742,131.12,131.09,4.1875329]
[1742408265618,0.05756742,131.12,131.11,7.627]
[1742408265810,0.05756742,131.12,131.09,4.1875329]
[1742408266011,7.68426742,131.12,131.09,11.8153329]
[1742408266316,7.68426742,131.12,131.09,0.0509329]
[1742408266512,0.05756742,131.12,131.09,0.0509329]
[1742408266717,0.05756742,131.12,131.09,7.6786329]
[1742408266918,0.05756742,131.12,131.09,0.0509329]
[1742408267811,0.05756742,131.12,131.1,7.6272]
[1742408268219,7.68406742,131.12,131.09,7.6787329]
[1742408268412,0.05756742,131.12,131.09,7.6787329]
[1742408268807,0.05756742,131.12,131.09,0.0509329]
[1742408270119,0.05756742,131.12,131.1,7.6272]
[1742408270316,0.05756742,131.12,131.09,0.0509329]
[1742408271618,7.68426742,131.12,131.09,7.6785329]
[1742408271819,7.68426742,131.12,131.09,0.0509329]
[1742408272320,0.05756742,131.12,131.09,0.0509329]
[1742408272919,0.05756742,131.12,131.1,7.6276]
[1742408273221,0.05756742,131.12,131.09,0.0509329]
[1742408273424,7.68426742,131.12,131.09,7.6787329]
[1742408273817,0.05756742,131.12,131.09,0.0509329]
[1742408274017,7.6276,131.1,131.09,0.0509329]
[1742408275019,0.05756742,131.12,131.09,0.0509329]
[1742408276127,7.6276,131.1,131.09,0.0509329]
[1742408276626,7.6286,131.09,131.06,7.6296]
[1742408277225,44.19893482,131.11,131.02,87.40353482]
[1742408277424,7.6288,131.08,131.02,39.94353482]
[1742408277625,44.19893482,131.11,131.02,47.46]
[1742408277822,7.68767171,131.06,131.04,0.05008194]
[1742408278017,4.2164,131.1,131.04,0.05008194]
[1742408278223,0.0532984,131.06,131.04,0.05008194]
[1742408278526,7.6305,131.05,131.04,0.05008194]
[1742408278931,0.0532984,131.06,131.04,0.05008194]
[1742408279628,7.6305,131.05,131.04,0.05008194]
[1742408279820,0.0532984,131.06,131.04,0.05008194]
[1742408280221,0.0532984,131.06,131.05,7.6305]
[1742408281430,0.0532984,131.06,131.04,7.68088194]
[1742408281733,0.0532984,131.06,131.04,0.05008194]
[1742408282325,9.84e-05,131.06,131.05,47.44]
[1742408282526,9.84e-05,131.06,131.05,55.0705]
[1742408282731,9.84e-05,131.06,131.04,0.05008194]
[1742408283027,9.84e-05,131.06,131.05,7.6305]
[1742408283621,9.84e-05,131.06,131.04,7.68088194]
[1742408283828,9.84e-05,131.06,131.04,0.05008194]
[1742408284231,9.84e-05,131.06,131.05,7.6305]
[1742408286632,9.84e-05,131.06,131.04,0.05008194]
[1742408287132,7.6319,131.03,131.0,7.6329]
[1742408287537,4.3007,131.05,130.98,12.1955]
[1742408287730,7.6316,131.04,131.0,7.6333]
[1742408287936,4.3007,131.05,131.0,7.6333]
[1742408288126,4.3007,131.05,130.93,15.2748]
[1742408288332,7.6338,131.0,130.93,59.5697]
[1742408288532,7.6338,131.0,130.98,0.04999158]
[1742408288739,7.6336,131.0,130.95,41.38422396]
[1742408289037,7.69227153,131.0,130.98,0.05289094]
[1742408289239,0.05867153,131.0,130.98,0.05289094]
[1742408289834,0.05867153,131.0,130.99,47.42]
[1742408289835,7.153e-05,131.0,130.99,47.42]
[1742408290342,7.153e-05,131.0,130.99,55.054]
[1742408291129,7.153e-05,131.0,130.99,7.634]
[1742408293245,8.0181,131.08,130.98,47.47289094]
[1742408293446,8.0181,131.08,130.98,47.42]
[1742408293650,3.9999,131.1,131.0,24.64552852]
[1742408294353,3.9999,131.1,131.03,0.05583699]
[1742408294535,0.05768965,131.06,131.03,47.45583699]
[1742408294735,8.965e-05,131.06,131.03,72.10136551]
[1742408294940,8.965e-05,131.06,131.05,7.63]
[1742408296139,8.965e-05,131.06,131.03,47.45583699]
[1742408297345,8.965e-05,131.06,131.03,0.05583699]
[1742408298941,24.64561817,131.06,130.99,47.38]
[1742408299248,24.64552852,131.06,130.99,47.38]
[1742408299447,4.0226,131.05,130.99,47.38]
[1742408299952,7.6322,131.02,130.99,47.38]
[1742408300250,7.6322,131.02,131.01,0.05428489]
[1742408300648,24.7015146,131.03,130.9,461.06309314]
[1742408300846,4.2828,131.02,130.95,47.38]